[Event "Live Chess"]
[Site "Chess.com"]
[Date "2024.06.02"]
[Round "-"]
[White "DarranAS"]
[Black "Demyan7777"]
[Result "0-1"]
[WhiteElo "1419"]
[BlackElo "1881"]
[TimeControl "300"]
[EndTime "8:01:42 PDT"]
[Termination "Demyan7777 won by resignation"]

1. Nf3 {[%clk 0:04:54.4]} 1... d5 {[%clk 0:04:56.4]} 2. d4 {[%clk 0:04:50.2]}
2... Nf6 {[%clk 0:04:54.6]} 3. g3 {[%clk 0:04:46.4]} 3... e6 {[%clk 0:04:52.1]}
4. Bg2 {[%clk 0:04:45.7]} 4... Be7 {[%clk 0:04:50]} 5. O-O {[%clk 0:04:44.6]}
5... O-O {[%clk 0:04:49]} 6. Re1 {[%clk 0:04:35.1]} 6... c6 {[%clk 0:04:46.9]}
7. c4 {[%clk 0:04:33.4]} 7... Nbd7 {[%clk 0:04:43]} 8. c5 {[%clk 0:04:29.3]}
8... b6 {[%clk 0:04:39.7]} 9. b4 {[%clk 0:04:28.3]} 9... a5 {[%clk 0:04:37.4]}
10. Ne5 {[%clk 0:04:08]} 10... Nxe5 {[%clk 0:04:30.6]} 11. dxe5 {[%clk 0:04:06]}
11... Nd7 {[%clk 0:04:29.4]} 12. cxb6 {[%clk 0:03:56.6]} 12... Bxb4 {[%clk
0:04:26.4]} 13. Bd2 {[%clk 0:03:51.5]} 13... Nxe5 {[%clk 0:04:24.9]} 14. Bxb4
{[%clk 0:03:48.2]} 14... axb4 {[%clk 0:04:22.8]} 15. Qd4 {[%clk 0:03:45.3]}
15... Nc4 {[%clk 0:04:21.8]} 16. e4 {[%clk 0:03:26.8]} 16... Qxb6 {[%clk
0:04:18]} 17. Qxb6 {[%clk 0:03:23.5]} 17... Nxb6 {[%clk 0:04:17.6]} 18. exd5
{[%clk 0:03:23]} 18... cxd5 {[%clk 0:04:16.6]} 19. Nd2 {[%clk 0:03:18.6]} 19...
Ba6 {[%clk 0:04:15]} 20. Rec1 {[%clk 0:03:02.7]} 20... Nc4 {[%clk 0:04:13.6]}
21. Nb3 {[%clk 0:02:58.3]} 21... Rfc8 {[%clk 0:04:09.1]} 22. h4 {[%clk
0:02:48.9]} 22... Na3 {[%clk 0:04:06.3]} 23. Kh2 {[%clk 0:02:37.2]} 23... Bc4
{[%clk 0:04:03.3]} 24. Nd2 {[%clk 0:02:20.9]} 24... Bb5 {[%clk 0:03:38.8]} 25.
Nb3 {[%clk 0:02:11.2]} 25... Rxc1 {[%clk 0:03:34.1]} 26. Rxc1 {[%clk 0:02:09.4]}
26... Nc4 {[%clk 0:03:31.2]} 27. Bf1 {[%clk 0:01:48.4]} 27... Rxa2 {[%clk
0:03:27.5]} 28. Kg2 {[%clk 0:01:40.3]} 28... h6 {[%clk 0:03:23.1]} 29. Nd4
{[%clk 0:01:35.4]} 29... Ne3+ {[%clk 0:03:20.5]} 30. Kg1 {[%clk 0:01:33.3]}
30... Bxf1 {[%clk 0:03:13.4]} 31. Rxf1 {[%clk 0:01:29.3]} 31... Nxf1 {[%clk
0:03:10.9]} 32. Kxf1 {[%clk 0:01:29.2]} 32... Rd2 {[%clk 0:03:09.2]} 0-1

[Event "Live Chess"]
[Site "Chess.com"]
[Date "2024.06.02"]
[Round "-"]
[White "RamsayFlayer"]
[Black "Dashman93"]
[Result "1-0"]
[WhiteElo "1948"]
[BlackElo "2136"]
[TimeControl "300"]
[EndTime "8:01:43 PDT"]
[Termination "RamsayFlayer won by checkmate"]

1. e4 {[%clk 0:04:57.3]} 1... e5 {[%clk 0:04:59.1]} 2. Nf3 {[%clk 0:04:56.6]}
2... d6 {[%clk 0:04:58.8]} 3. d4 {[%clk 0:04:54.5]} 3... Nc6 {[%clk 0:04:58.3]}
4. dxe5 {[%clk 0:04:52.6]} 4... dxe5 {[%clk 0:04:56.3]} 5. Qxd8+ {[%clk
0:04:51]} 5... Kxd8 {[%clk 0:04:56.2]} 6. Bb5 {[%clk 0:04:47.7]} 6... Bd6 {[%clk
0:04:54.5]} 7. Bxc6 {[%clk 0:04:44.9]} 7... bxc6 {[%clk 0:04:54.4]} 8. Nc3
{[%clk 0:04:42]} 8... f6 {[%clk 0:04:53.8]} 9. Be3 {[%clk 0:04:39.6]} 9... Ne7
{[%clk 0:04:52.6]} 10. O-O-O {[%clk 0:04:38.1]} 10... Bg4 {[%clk 0:04:52.1]} 11.
Bc5 {[%clk 0:04:32.4]} 11... Nc8 {[%clk 0:04:50.4]} 12. Rd3 {[%clk 0:04:19]}
12... Ke7 {[%clk 0:04:48.4]} 13. Be3 {[%clk 0:04:09.6]} 13... Nb6 {[%clk
0:04:45.4]} 14. h3 {[%clk 0:04:04.1]} 14... Be6 {[%clk 0:04:43.8]} 15. Nd2
{[%clk 0:03:49.4]} 15... Rab8 {[%clk 0:04:40.1]} 16. Nb3 {[%clk 0:03:43.8]}
16... Nc4 {[%clk 0:04:38.8]} 17. Na4 {[%clk 0:03:31.2]} 17... Rb5 {[%clk
0:04:31.7]} 18. Nac5 {[%clk 0:03:19.7]} 18... Nxe3 {[%clk 0:04:30.4]} 19. Nxe6
{[%clk 0:03:11.7]} 19... Nxg2 {[%clk 0:04:26.6]} 20. Nxg7 {[%clk 0:03:09.1]}
20... Nf4 {[%clk 0:04:24.8]} 21. Nf5+ {[%clk 0:03:06.1]} 21... Ke6 {[%clk
0:04:24.1]} 22. Rd2 {[%clk 0:02:41.6]} 22... a5 {[%clk 0:04:13.2]} 23. Rhd1
{[%clk 0:02:34.6]} 23... Rd8 {[%clk 0:04:12.3]} 24. a4 {[%clk 0:02:17.5]} 24...
Rb4 {[%clk 0:04:10.2]} 25. Nc5+ {[%clk 0:01:51.3]} 25... Bxc5 {[%clk 0:03:56.7]}
26. Rxd8 {[%clk 0:01:49.3]} 26... Rxe4 {[%clk 0:03:56.3]} 27. Ng7+ {[%clk
0:01:42.7]} 27... Kf7 {[%clk 0:03:55.2]} 28. R8d7+ {[%clk 0:01:34.7]} 28... Kg6
{[%clk 0:03:54.2]} 29. Rxc7 {[%clk 0:01:25.6]} 29... Bxf2 {[%clk 0:03:48.6]} 30.
Ne8 {[%clk 0:01:17.2]} 30... Rxa4 {[%clk 0:03:45.5]} 31. Kb1 {[%clk 0:01:09.4]}
31... Nd5 {[%clk 0:03:35.5]} 32. Rxc6 {[%clk 0:01:03.6]} 32... Bd4 {[%clk
0:03:30.9]} 33. c3 {[%clk 0:00:59.2]} 33... Ne3 {[%clk 0:03:30]} 34. Rxf6+
{[%clk 0:00:53.4]} 34... Kg5 {[%clk 0:03:28.2]} 35. Rg1+ {[%clk 0:00:51.6]}
35... Kh4 {[%clk 0:03:25.6]} 36. Rh6# {[%clk 0:00:48.5]} 1-0

[Event "Live Chess"]
[Site "Chess.com"]
[Date "2024.06.02"]
[Round "-"]
[White "lyricalschemes"]
[Black "grillage"]
[Result "1/2-1/2"]
[WhiteElo "2205"]
[BlackElo "1865"]
[TimeControl "300"]
[EndTime "8:01:44 PDT"]
[Termination "Game drawn by agreement"]

1. e4 {[%clk 0:04:58.9]} 1... d5 {[%clk 0:04:53.4]} 2. exd5 {[%clk 0:04:57.7]}
2... Qxd5 {[%clk 0:04:52]} 3. Nc3 {[%clk 0:04:55.9]} 3... Qd8 {[%clk 0:04:51]}
4. Bc4 {[%clk 0:04:53.7]} 4... Nf6 {[%clk 0:04:49.2]} 5. d3 {[%clk 0:04:53]}
5... c5 {[%clk 0:04:32.5]} 6. Nge2 {[%clk 0:04:49.8]} 6... Nc6 {[%clk
0:04:30.9]} 7. O-O {[%clk 0:04:47.9]} 7... Bg4 {[%clk 0:04:29.4]} 8. h3 {[%clk
0:04:46.3]} 8... Bxe2 {[%clk 0:04:27.8]} 9. Qxe2 {[%clk 0:04:44.8]} 9... e6
{[%clk 0:04:27.2]} 10. Bg5 {[%clk 0:04:43.2]} 10... Be7 {[%clk 0:04:22.3]} 11.
Rad1 {[%clk 0:04:41.4]} 11... O-O {[%clk 0:04:20.5]} 12. Rfe1 {[%clk 0:04:36.9]}
12... Nd4 {[%clk 0:04:18.3]} 13. Qd2 {[%clk 0:04:34.9]} 13... h6 {[%clk
0:04:13.8]} 14. Bh4 {[%clk 0:04:33.4]} 14... a6 {[%clk 0:04:11.3]} 15. a4 {[%clk
0:04:30]} 15... Re8 {[%clk 0:03:59.8]} 16. Bxf6 {[%clk 0:04:22]} 16... Bxf6
{[%clk 0:03:56.6]} 17. Ne4 {[%clk 0:04:20.3]} 17... Be7 {[%clk 0:03:35.3]} 18.
c3 {[%clk 0:04:12.2]} 18... Nf5 {[%clk 0:03:32.5]} 19. Qf4 {[%clk 0:04:05.3]}
19... Nd6 {[%clk 0:03:25.5]} 20. Qf3 {[%clk 0:03:53.6]} 20... Nxc4 {[%clk
0:03:22.2]} 21. dxc4 {[%clk 0:03:51.3]} 21... Qc7 {[%clk 0:03:19.7]} 22. b3
{[%clk 0:03:42.4]} 22... Rad8 {[%clk 0:03:17.7]} 23. Qg3 {[%clk 0:03:37.4]}
23... Qxg3 {[%clk 0:03:15]} 24. Nxg3 {[%clk 0:03:35.9]} 24... Rxd1 {[%clk
0:03:13.7]} 25. Rxd1 {[%clk 0:03:35.4]} 25... Rd8 {[%clk 0:03:13]} 26. Rxd8+
{[%clk 0:03:33]} 26... Bxd8 {[%clk 0:03:12.2]} 27. Ne4 {[%clk 0:03:32.3]} 27...
b6 {[%clk 0:03:06.6]} 28. Kf1 {[%clk 0:03:29]} 28... f5 {[%clk 0:03:05.6]} 29.
Nd2 {[%clk 0:03:18.3]} 29... Bf6 {[%clk 0:03:04.9]} 30. Nb1 {[%clk 0:03:13.3]}
30... e5 {[%clk 0:03:04]} 31. Ke2 {[%clk 0:03:11.8]} 31... Kf7 {[%clk
0:03:01.5]} 32. f3 {[%clk 0:03:11.2]} 32... Ke6 {[%clk 0:02:59.6]} 33. Kd3
{[%clk 0:03:10.3]} 33... g5 {[%clk 0:02:47.1]} 34. b4 {[%clk 0:03:04.8]} 34...
Be7 {[%clk 0:02:42.3]} 35. b5 {[%clk 0:02:59.4]} 35... a5 {[%clk 0:02:29.3]} 36.
Nd2 {[%clk 0:02:58.6]} 1/2-1/2

[Event "Live Chess"]
[Site "Chess.com"]
[Date "2024.06.02"]
[Round "-"]
[White "McCarthyStone"]
[Black "MagnersCarlsberg2870"]
[Result "1-0"]
[WhiteElo "2464"]
[BlackElo "1770"]
[TimeControl "300"]
[EndTime "8:01:49 PDT"]
[Termination "McCarthyStone won by resignation"]

1. b3 {[%clk 0:04:53.4]} 1... e5 {[%clk 0:04:54.5]} 2. Bb2 {[%clk 0:04:53.3]}
2... Nc6 {[%clk 0:04:53.2]} 3. e3 {[%clk 0:04:47.4]} 3... Nf6 {[%clk 0:04:50.6]}
4. Bb5 {[%clk 0:04:44.9]} 4... a6 {[%clk 0:04:48.2]} 5. Bxc6 {[%clk 0:04:43.5]}
5... dxc6 {[%clk 0:04:47]} 6. Bxe5 {[%clk 0:04:42]} 6... Bd6 {[%clk 0:04:46]} 7.
Bxd6 {[%clk 0:04:39.7]} 7... cxd6 {[%clk 0:04:45]} 8. Nf3 {[%clk 0:04:38.6]}
8... O-O {[%clk 0:04:43]} 9. h3 {[%clk 0:04:38.1]} 9... d5 {[%clk 0:04:40.1]}
10. d3 {[%clk 0:04:36.8]} 10... Bf5 {[%clk 0:04:38.2]} 11. Nbd2 {[%clk
0:04:35.8]} 11... Re8 {[%clk 0:04:37.1]} 12. O-O {[%clk 0:04:35]} 12... Qd7
{[%clk 0:04:32.8]} 13. Re1 {[%clk 0:04:32.1]} 13... Bxh3 {[%clk 0:04:31.2]} 14.
gxh3 {[%clk 0:04:30.8]} 14... Qxh3 {[%clk 0:04:30.3]} 15. Qe2 {[%clk 0:04:28.7]}
15... Qg4+ {[%clk 0:04:23.3]} 16. Kh1 {[%clk 0:04:24.2]} 16... Qh4+ {[%clk
0:04:16.6]} 17. Nxh4 {[%clk 0:04:22.7]} 1-0

[Event "Live Chess"]
[Site "Chess.com"]
[Date "2024.06.02"]
[Round "-"]
[White "santhoshrlokesh"]
[Black "Larchikov"]
[Result "0-1"]
[WhiteElo "1470"]
[BlackElo "2118"]
[TimeControl "300"]
[EndTime "8:01:53 PDT"]
[Termination "Larchikov won by resignation"]

1. d4 {[%clk 0:04:59.5]} 1... d5 {[%clk 0:04:57.8]} 2. Bf4 {[%clk 0:04:58.8]}
2... c5 {[%clk 0:04:57.6]} 3. dxc5 {[%clk 0:04:56.6]} 3... Nc6 {[%clk
0:04:56.3]} 4. e3 {[%clk 0:04:54.9]} 4... e5 {[%clk 0:04:55.6]} 5. Bg3 {[%clk
0:04:50.8]} 5... Bxc5 {[%clk 0:04:55.1]} 6. Bb5 {[%clk 0:04:49.2]} 6... Nf6
{[%clk 0:04:52.1]} 7. Bxc6+ {[%clk 0:04:46.6]} 7... bxc6 {[%clk 0:04:50.1]} 8.
Nc3 {[%clk 0:04:42.2]} 8... Qe7 {[%clk 0:04:47.6]} 9. Nf3 {[%clk 0:04:35.6]}
9... Bg4 {[%clk 0:04:45.4]} 10. O-O {[%clk 0:04:30.1]} 10... e4 {[%clk
0:04:42.8]} 11. h3 {[%clk 0:04:24.6]} 11... Bh5 {[%clk 0:04:40.7]} 12. a3 {[%clk
0:04:07.8]} 12... exf3 {[%clk 0:04:38]} 13. gxf3 {[%clk 0:04:05.3]} 13... O-O
{[%clk 0:04:32.8]} 14. Qd3 {[%clk 0:03:57.4]} 14... Rad8 {[%clk 0:04:27.9]} 15.
b4 {[%clk 0:03:55]} 15... Bd6 {[%clk 0:04:23.1]} 16. Bh4 {[%clk 0:03:49.9]}
16... Qe5 {[%clk 0:04:18.5]} 17. f4 {[%clk 0:03:43.3]} 17... Qe6 {[%clk
0:04:15]} 18. Rae1 {[%clk 0:03:36.1]} 18... Qxh3 {[%clk 0:04:12.6]} 19. Bxf6
{[%clk 0:03:32.9]} 19... Bf3 {[%clk 0:04:07.3]} 0-1

[Event "Live Chess"]
[Site "Chess.com"]
[Date "2024.06.02"]
[Round "-"]
[White "E2E4colchester"]
[Black "JanMur7"]
[Result "0-1"]
[WhiteElo "1162"]
[BlackElo "2283"]
[TimeControl "300"]
[EndTime "8:01:57 PDT"]
[Termination "JanMur7 won by resignation"]

1. d4 {[%clk 0:04:57]} 1... e5 {[%clk 0:04:59.4]} 2. dxe5 {[%clk 0:04:55.5]}
2... Nc6 {[%clk 0:04:58.2]} 3. Nf3 {[%clk 0:04:53.8]} 3... Qe7 {[%clk
0:04:57.6]} 4. Nc3 {[%clk 0:04:52.7]} 4... Nxe5 {[%clk 0:04:55.4]} 5. Nxe5
{[%clk 0:04:50.9]} 5... Qxe5 {[%clk 0:04:55.3]} 6. e3 {[%clk 0:04:49.9]} 6...
Nf6 {[%clk 0:04:53.9]} 7. Bd3 {[%clk 0:04:49.2]} 7... b6 {[%clk 0:04:52.5]} 8.
f4 {[%clk 0:04:43.7]} 8... Qh5 {[%clk 0:04:48.6]} 9. Qxh5 {[%clk 0:04:41.8]}
9... Nxh5 {[%clk 0:04:48.3]} 10. Be4 {[%clk 0:04:39.8]} 10... c6 {[%clk
0:04:45.9]} 11. g3 {[%clk 0:04:38]} 11... d5 {[%clk 0:04:42.2]} 12. Bd3 {[%clk
0:04:35.8]} 12... Nf6 {[%clk 0:04:40.3]} 13. b3 {[%clk 0:04:33.3]} 13... Bb4
{[%clk 0:04:37.3]} 14. Bb2 {[%clk 0:04:32.1]} 14... O-O {[%clk 0:04:36.4]} 15.
O-O-O {[%clk 0:04:29.6]} 15... Re8 {[%clk 0:04:34.7]} 16. a3 {[%clk 0:04:28]}
16... Bc5 {[%clk 0:04:32.4]} 17. e4 {[%clk 0:04:25.1]} 17... dxe4 {[%clk
0:04:28.2]} 18. Rhe1 {[%clk 0:04:22.6]} 18... exd3 {[%clk 0:04:24.6]} 19. Rxe8+
{[%clk 0:04:20.5]} 19... Nxe8 {[%clk 0:04:24.5]} 20. Rxd3 {[%clk 0:04:19.1]}
20... Bf5 {[%clk 0:04:23]} 21. Rd1 {[%clk 0:04:12]} 21... Kf8 {[%clk 0:04:18.4]}
22. Na4 {[%clk 0:04:05.2]} 22... Be3+ {[%clk 0:04:13.9]} 23. Kb1 {[%clk
0:04:03.4]} 23... b5 {[%clk 0:04:11.2]} 24. Nc3 {[%clk 0:04:00]} 24... Nc7
{[%clk 0:04:06.7]} 25. Ne2 {[%clk 0:03:58.5]} 25... Ne6 {[%clk 0:04:03.1]} 26.
Ng1 {[%clk 0:03:50.1]} 26... Bxg1 {[%clk 0:04:01.1]} 27. Rxg1 {[%clk 0:03:49.2]}
27... Rd8 {[%clk 0:04:00.2]} 28. Ka2 {[%clk 0:03:45.8]} 28... Rd2 {[%clk
0:03:57.7]} 29. g4 {[%clk 0:03:42.9]} 29... Be4 {[%clk 0:03:53.5]} 30. f5 {[%clk
0:03:40.8]} 30... Nc5 {[%clk 0:03:50.3]} 31. g5 {[%clk 0:03:36.4]} 31... Rxc2
{[%clk 0:03:47.9]} 32. f6 {[%clk 0:03:27.9]} 32... Nd3 {[%clk 0:03:41]} 33.
fxg7+ {[%clk 0:03:24.6]} 33... Kg8 {[%clk 0:03:38.6]} 34. Ka1 {[%clk 0:03:11.2]}
34... Rxb2 {[%clk 0:03:32.3]} 35. Rd1 {[%clk 0:02:59.7]} 35... Kxg7 {[%clk
0:03:30.1]} 36. Rxd3 {[%clk 0:02:58.3]} 36... Bxd3 {[%clk 0:03:30]} 37. Kxb2
{[%clk 0:02:57.6]} 37... Kg6 {[%clk 0:03:29.3]} 38. Kc3 {[%clk 0:02:56.9]} 38...
Bf1 {[%clk 0:03:27.2]} 39. h4 {[%clk 0:02:55.4]} 39... Kh5 {[%clk 0:03:25.8]}
40. Kb4 {[%clk 0:02:53.5]} 40... Kxh4 {[%clk 0:03:24.5]} 41. Kc5 {[%clk
0:02:52.5]} 41... Kxg5 {[%clk 0:03:23.1]} 42. Kxc6 {[%clk 0:02:51.1]} 42... h5
{[%clk 0:03:22.1]} 43. Kc5 {[%clk 0:02:47.6]} 43... h4 {[%clk 0:03:21.2]} 44. a4
{[%clk 0:02:45.9]} 44... bxa4 {[%clk 0:03:19.6]} 45. bxa4 {[%clk 0:02:45.1]}
45... h3 {[%clk 0:03:19.5]} 46. a5 {[%clk 0:02:43.7]} 46... h2 {[%clk
0:03:19.4]} 47. Kc6 {[%clk 0:02:41.9]} 47... h1=Q+ {[%clk 0:03:19.3]} 48. Kc7
{[%clk 0:02:33]} 48... Qd5 {[%clk 0:03:18.5]} 0-1

[Event "Live Chess"]
[Site "Chess.com"]
[Date "2024.06.02"]
[Round "-"]
[White "Queensandpawns"]
[Black "elephantgerrald"]
[Result "1-0"]
[WhiteElo "2256"]
[BlackElo "852"]
[TimeControl "300"]
[EndTime "8:02:00 PDT"]
[Termination "Queensandpawns won by checkmate"]

1. e4 {[%clk 0:04:59.5]} 1... e5 {[%clk 0:04:58.2]} 2. d4 {[%clk 0:04:57.9]}
2... exd4 {[%clk 0:04:56.3]} 3. c3 {[%clk 0:04:57.8]} 3... dxc3 {[%clk
0:04:55.2]} 4. Bc4 {[%clk 0:04:57.5]} 4... cxb2 {[%clk 0:04:49.5]} 5. Bxb2
{[%clk 0:04:57.4]} 5... Qg5 {[%clk 0:04:44.8]} 6. Nf3 {[%clk 0:04:54.6]} 6...
Qxg2 {[%clk 0:04:36.9]} 7. Rg1 {[%clk 0:04:47.6]} 7... Bb4+ {[%clk 0:04:25.5]}
8. Nc3 {[%clk 0:03:56.2]} 8... Bxc3+ {[%clk 0:04:18.6]} 9. Bxc3 {[%clk
0:03:56.1]} 9... Qh3 {[%clk 0:04:14.6]} 10. Bxf7+ {[%clk 0:03:53.6]} 10... Kxf7
{[%clk 0:04:10]} 11. Ng5+ {[%clk 0:03:52.4]} 11... Kf8 {[%clk 0:04:07.5]} 12.
Nxh3 {[%clk 0:03:52.3]} 12... d5 {[%clk 0:04:06.1]} 13. Bxg7+ {[%clk 0:03:50.5]}
13... Ke8 {[%clk 0:04:04.4]} 14. Qxd5 {[%clk 0:03:46.8]} 14... Bxh3 {[%clk
0:03:48]} 15. Bxh8 {[%clk 0:03:43.6]} 15... Ne7 {[%clk 0:03:44.9]} 16. Qh5+
{[%clk 0:03:41.9]} 16... Kd8 {[%clk 0:03:37.2]} 17. Rd1+ {[%clk 0:03:37.4]}
17... Nd7 {[%clk 0:02:42.6]} 18. Qxh3 {[%clk 0:03:26.7]} 18... c6 {[%clk
0:02:13]} 19. Qxd7# {[%clk 0:03:09.8]} 1-0

[Event "Live Chess"]
[Site "Chess.com"]
[Date "2024.06.02"]
[Round "-"]
[White "goldinspiredphoenix"]
[Black "Frankie_Badacsonyi"]
[Result "0-1"]
[WhiteElo "1489"]
[BlackElo "2368"]
[TimeControl "300"]
[EndTime "8:02:13 PDT"]
[Termination "Frankie_Badacsonyi won by resignation"]

1. e4 {[%clk 0:04:58]} 1... e6 {[%clk 0:04:57.7]} 2. f4 {[%clk 0:04:56]} 2... d5
{[%clk 0:04:57.6]} 3. e5 {[%clk 0:04:54.4]} 3... c5 {[%clk 0:04:56.6]} 4. Nf3
{[%clk 0:04:52.2]} 4... Nc6 {[%clk 0:04:56.1]} 5. c3 {[%clk 0:04:51.3]} 5... d4
{[%clk 0:04:50.9]} 6. cxd4 {[%clk 0:04:49.4]} 6... cxd4 {[%clk 0:04:50.8]} 7. d3
{[%clk 0:04:47.6]} 7... Nge7 {[%clk 0:04:48.3]} 8. a3 {[%clk 0:04:45.7]} 8... h5
{[%clk 0:04:40.8]} 9. g3 {[%clk 0:04:44.1]} 9... Nf5 {[%clk 0:04:38.2]} 10. Bg2
{[%clk 0:04:42.2]} 10... Be7 {[%clk 0:04:37]} 11. Nbd2 {[%clk 0:04:32]} 11...
Ne3 {[%clk 0:04:35.2]} 12. Qe2 {[%clk 0:04:29.2]} 12... Nc2+ {[%clk 0:04:34.4]}
13. Kf2 {[%clk 0:04:23.9]} 13... Nxa1 {[%clk 0:04:34.3]} 14. Qd1 {[%clk
0:04:15.5]} 14... Bd7 {[%clk 0:04:14.3]} 15. b4 {[%clk 0:04:14.2]} 15... Rc8
{[%clk 0:04:07.7]} 16. Bb2 {[%clk 0:04:12.6]} 16... g6 {[%clk 0:04:07]} 17. Qxa1
{[%clk 0:04:10.2]} 17... O-O {[%clk 0:04:04.8]} 18. Nxd4 {[%clk 0:04:07.4]}
18... Nxd4 {[%clk 0:04:04.7]} 19. Bxd4 {[%clk 0:04:05.9]} 19... Bc6 {[%clk
0:04:04.6]} 20. Bxc6 {[%clk 0:04:00.2]} 20... Rxc6 {[%clk 0:04:04.5]} 21. Nc4
{[%clk 0:03:46.9]} 21... Qd5 {[%clk 0:04:00.9]} 22. Rc1 {[%clk 0:03:41]} 22...
Rd8 {[%clk 0:03:57.9]} 23. Ke3 {[%clk 0:03:37.2]} 23... b5 {[%clk 0:03:54.3]}
24. Nd6 {[%clk 0:03:28.9]} 24... Rxc1 {[%clk 0:03:50.5]} 25. Qxc1 {[%clk
0:03:27.4]} 25... Bxd6 {[%clk 0:03:49.7]} 26. exd6 {[%clk 0:03:25.9]} 26... Rxd6
{[%clk 0:03:43.2]} 27. Qb2 {[%clk 0:03:22.7]} 27... a6 {[%clk 0:03:37.2]} 28.
Qc3 {[%clk 0:03:20.3]} 28... Rd8 {[%clk 0:03:35.2]} 29. Kf2 {[%clk 0:02:55.2]}
29... Qxd4+ {[%clk 0:03:33]} 30. Qxd4 {[%clk 0:02:52.2]} 30... Rxd4 {[%clk
0:03:32.9]} 31. Ke3 {[%clk 0:02:51.5]} 31... Rd5 {[%clk 0:03:31.9]} 32. d4
{[%clk 0:02:50.9]} 32... Kg7 {[%clk 0:03:31.2]} 33. Ke4 {[%clk 0:02:50.1]} 33...
Kf6 {[%clk 0:03:31.1]} 34. h3 {[%clk 0:02:48.1]} 34... g5 {[%clk 0:03:30.1]} 35.
h4 {[%clk 0:02:42.7]} 35... gxh4 {[%clk 0:03:28.4]} 36. gxh4 {[%clk 0:02:41.6]}
36... Kg6 {[%clk 0:03:28.3]} 37. Ke3 {[%clk 0:02:39.6]} 37... Kf5 {[%clk
0:03:26.8]} 38. Kd3 {[%clk 0:02:35.8]} 38... Kxf4 {[%clk 0:03:26.6]} 39. Kc3
{[%clk 0:02:33.6]} 39... Ke4 {[%clk 0:03:26.5]} 0-1

[Event "Live Chess"]
[Site "Chess.com"]
[Date "2024.06.02"]
[Round "-"]
[White "FlyingChessKestrel13"]
[Black "DJ_Lambton"]
[Result "1-0"]
[WhiteElo "2061"]
[BlackElo "1790"]
[TimeControl "300"]
[EndTime "8:02:15 PDT"]
[Termination "FlyingChessKestrel13 won by resignation"]

1. e4 {[%clk 0:04:57.7]} 1... c6 {[%clk 0:04:59.9]} 2. d4 {[%clk 0:04:56.5]}
2... d5 {[%clk 0:04:59.6]} 3. exd5 {[%clk 0:04:55.7]} 3... cxd5 {[%clk
0:04:59.5]} 4. Nf3 {[%clk 0:04:54.8]} 4... Nf6 {[%clk 0:04:58.9]} 5. Bd3 {[%clk
0:04:53.8]} 5... Bg4 {[%clk 0:04:58.1]} 6. O-O {[%clk 0:04:52.8]} 6... e6 {[%clk
0:04:57.5]} 7. c3 {[%clk 0:04:52.2]} 7... Nc6 {[%clk 0:04:56.6]} 8. Re1 {[%clk
0:04:51.6]} 8... Be7 {[%clk 0:04:56.1]} 9. Nbd2 {[%clk 0:04:50]} 9... O-O {[%clk
0:04:55.3]} 10. Nf1 {[%clk 0:04:49.2]} 10... Rc8 {[%clk 0:04:53.6]} 11. Ne3
{[%clk 0:04:48.4]} 11... Bxf3 {[%clk 0:04:52.3]} 12. Qxf3 {[%clk 0:04:47.1]}
12... Bd6 {[%clk 0:04:50.7]} 13. Ng4 {[%clk 0:04:42.3]} 13... Nxg4 {[%clk
0:04:48.9]} 14. Qxg4 {[%clk 0:04:42.2]} 14... Ne7 {[%clk 0:04:48.4]} 15. Qh5
{[%clk 0:04:37.7]} 15... Ng6 {[%clk 0:04:47.1]} 16. Bg5 {[%clk 0:04:33.5]} 16...
Be7 {[%clk 0:04:45.6]} 17. Bxe7 {[%clk 0:04:32.2]} 17... Qxe7 {[%clk 0:04:45.5]}
18. g3 {[%clk 0:04:27.3]} 18... Qf6 {[%clk 0:04:43.6]} 19. h4 {[%clk 0:04:23.5]}
19... a6 {[%clk 0:04:37.3]} 20. Qg4 {[%clk 0:04:22.1]} 20... Rc6 {[%clk
0:04:33.2]} 21. h5 {[%clk 0:04:21.2]} 21... Ne7 {[%clk 0:04:32.3]} 22. Re3
{[%clk 0:04:18.7]} 22... h6 {[%clk 0:04:28.9]} 23. Rf3 {[%clk 0:04:12.9]} 23...
Qg5 {[%clk 0:04:27.8]} 24. Qxg5 {[%clk 0:04:07.3]} 24... hxg5 {[%clk 0:04:27.7]}
25. g4 {[%clk 0:04:06.1]} 25... Rb6 {[%clk 0:04:26.3]} 26. b3 {[%clk 0:04:02.5]}
26... Rc8 {[%clk 0:04:24.7]} 27. Kg2 {[%clk 0:04:00.9]} 27... Rxc3 {[%clk
0:04:23.1]} 28. Bh7+ {[%clk 0:03:59.1]} 28... Kxh7 {[%clk 0:04:21.7]} 29. Rxc3
{[%clk 0:03:58.2]} 29... Nc6 {[%clk 0:04:19.9]} 30. Rd1 {[%clk 0:03:55.9]} 30...
g6 {[%clk 0:04:17.4]} 31. Rh3 {[%clk 0:03:49.4]} 31... gxh5 {[%clk 0:04:15.6]}
32. Rxh5+ {[%clk 0:03:48.8]} 32... Kg6 {[%clk 0:04:14.9]} 33. Kf3 {[%clk
0:03:46.3]} 33... f6 {[%clk 0:04:12.9]} 34. Ke3 {[%clk 0:03:45]} 34... Rb4
{[%clk 0:04:11.5]} 35. Rdh1 {[%clk 0:03:42.6]} 35... Nxd4 {[%clk 0:04:03.9]} 36.
Rh6+ {[%clk 0:03:41.3]} 36... Kf7 {[%clk 0:04:02.3]} 37. Kd3 {[%clk 0:03:37.3]}
37... Nf3 {[%clk 0:03:59]} 38. Rh7+ {[%clk 0:03:33.7]} 38... Ke8 {[%clk
0:03:58]} 39. Rh8+ {[%clk 0:03:31.8]} 39... Ke7 {[%clk 0:03:56.8]} 40. R1h7+
{[%clk 0:03:31.2]} 40... Kd6 {[%clk 0:03:56]} 41. Rd8+ {[%clk 0:03:29.9]} 41...
Ke5 {[%clk 0:03:55]} 42. Re7 {[%clk 0:03:25.7]} 42... Rb6 {[%clk 0:03:40.6]} 43.
Rdd7 {[%clk 0:03:22.9]} 43... Nd4 {[%clk 0:03:37.3]} 44. Rxb7 {[%clk 0:03:19.9]}
44... Rxb7 {[%clk 0:03:36.4]} 45. Rxb7 {[%clk 0:03:18.4]} 45... Nf3 {[%clk
0:03:19.6]} 46. Ke3 {[%clk 0:03:14.1]} 46... Nd4 {[%clk 0:03:18.3]} 47. Ra7
{[%clk 0:03:09.7]} 47... Nc2+ {[%clk 0:03:17.5]} 48. Kd2 {[%clk 0:03:06.5]}
48... Nb4 {[%clk 0:03:15.1]} 49. a3 {[%clk 0:03:05.2]} 49... Nc6 {[%clk
0:03:13.6]} 50. Rxa6 {[%clk 0:03:04]} 50... Nd4 {[%clk 0:03:13.2]} 51. b4 {[%clk
0:02:58]} 51... f5 {[%clk 0:03:01.5]} 52. gxf5 {[%clk 0:02:56.7]} 52... exf5
{[%clk 0:03:01.4]} 53. Kd3 {[%clk 0:02:53.1]} 53... g4 {[%clk 0:03:00.2]} 54.
Ra8 {[%clk 0:02:49.4]} 54... Nc6 {[%clk 0:02:55]} 55. b5 {[%clk 0:02:47.6]}
55... Ne7 {[%clk 0:02:48.9]} 56. b6 {[%clk 0:02:46.7]} 56... Kd6 {[%clk
0:02:47.9]} 57. b7 {[%clk 0:02:45.3]} 57... Nc6 {[%clk 0:02:46.4]} 58. b8=Q+
{[%clk 0:02:44.2]} 58... Nxb8 {[%clk 0:02:45.8]} 59. Rxb8 {[%clk 0:02:43.7]}
59... f4 {[%clk 0:02:45.3]} 60. Rg8 {[%clk 0:02:42.3]} 1-0